bitfinex/quotes_SOLUSD_20251116
["timestamp","ask_amount","ask_price","bid_price","bid_amount"]
[1763269096350,0.68,141.44,141.41,45.63880284]
[1763269096763,0.68,141.44,141.41,46.33880284]
[1763269097072,0.68,141.45,141.42,2.43135882]
[1763269097453,0.68,141.45,141.42,23.68609685]
[1763269098775,1.73135882,141.47,141.42,22.98609685]
[1763269098980,0.68,141.46,141.43,2.43135882]
[1763269099175,104.2,141.48,141.44,1.73135882]
[1763269099353,0.68,141.47,141.44,24.38255882]
[1763269099558,0.68,141.47,141.44,25.08255882]
[1763269099776,0.68,141.47,141.45,1.73135882]
[1763269100155,0.68,141.47,141.44,46.33428552]
[1763269102966,0.68,141.47,141.44,45.63428552]
[1763269106192,0.68,141.47,141.44,46.33428552]
[1763269109178,0.68,141.47,141.44,45.63428552]
[1763269110486,0.68,141.47,141.44,46.33428552]
[1763269110878,0.68,141.47,141.44,47.30766831]
[1763269111265,0.68,141.47,141.44,46.60766831]
[1763269111589,0.68,141.47,141.44,47.30766831]
[1763269111966,0.68,141.47,141.44,25.35594161]
[1763269112164,0.68,141.47,141.44,22.6512]
[1763269117996,0.68,141.47,141.44,25.35594161]
[1763269119795,0.68,141.47,141.44,46.60766831]
[1763269120399,0.68,141.47,141.44,25.35594161]
[1763269122092,0.68,141.47,141.44,46.60766831]
[1763269122398,0.68,141.47,141.44,25.35594161]
[1763269125698,0.68,141.47,141.44,26.06594161]
[1763269127385,0.68,141.47,141.44,25.35594161]
[1763269129398,3.38474161,141.47,141.44,22.6512]
[1763269129599,2.70474161,141.46,141.44,22.6512]
[1763269129789,3.36474161,141.46,141.44,22.6512]
[1763269130086,0.66,141.45,141.44,22.6512]
[1763269130616,0.66,141.45,141.42,23.95797387]
[1763269130903,0.66,141.45,141.42,47.31917387]
[1763269131476,0.66,141.45,141.42,46.60917387]
[1763269131679,0.66,141.45,141.42,47.31917387]
[1763269132896,0.66,141.47,141.44,2.70474161]
[1763269133084,0.66,141.47,141.45,2.70474161]
[1763269134509,0.66,141.47,141.44,21.9617267]
[1763269134712,0.66,141.47,141.44,3.41474161]
[1763269134914,0.66,141.47,141.44,0.71]
[1763269135210,0.66,141.47,141.43,23.95646831]
[1763269135592,0.66,141.47,141.43,24.66646831]
[1763269135791,0.66,141.47,141.44,2.70474161]
[1763269136110,0.66,141.49,141.45,2.70474161]
[1763269136298,0.66,141.49,141.46,0.71]
[1763269137213,3.36474161,141.49,141.44,24.66646831]
[1763269137621,0.66,141.48,141.44,3.41474161]
[1763269137917,0.66,141.48,141.44,24.66496296]
[1763269138519,3.36474161,141.48,141.44,24.66496296]
[1763269139012,3.36474161,141.48,141.44,23.95496296]
[1763269139215,0.66,141.47,141.44,23.95496296]
[1763269139421,0.66,141.47,141.44,24.66496296]
[1763269140220,0.66,141.47,141.44,21.96022135]
[1763269140634,0.66,141.47,141.44,21.25022135]
[1763269141117,0.66,141.47,141.44,21.96022135]
[1763269141616,0.66,141.47,141.44,21.25022135]
[1763269141817,0.66,141.47,141.44,21.96022135]
[1763269142614,0.66,141.47,141.44,21.25022135]
[1763269142813,0.66,141.47,141.44,3.41474161]
[1763269143123,0.66,141.47,141.44,5.53810445]
[1763269143304,0.66,141.48,141.45,0.71]
[1763269143720,0.66,141.48,141.44,5.53810445]
[1763269143911,0.66,141.48,141.44,3.41474161]
[1763269144111,0.66,141.48,141.45,2.83336284]
[1763269146822,3.36474161,141.5,141.46,3.41474161]
[1763269147130,3.36474161,141.5,141.46,2.70474161]
[1763269147335,0.66,141.49,141.45,3.41474161]
[1763269147512,3.36474161,141.49,141.46,3.36474161]
[1763269148309,0.66,141.48,141.46,3.36474161]
[1763269152327,2.70474161,141.5,141.46,28.72068322]
[1763269152533,3.36474161,141.5,141.47,0.71]
[1763269153049,3.36474161,141.5,141.46,28.72068322]
[1763269153050,0.66,141.49,141.46,29.43068322]
[1763269154330,0.66,141.49,141.46,26.06594161]
[1763269154634,3.56474161,141.51,141.47,6.19790377]
[1763269154836,0.86,141.51,141.47,6.19790377]
[1763269155135,0.86,141.51,141.48,0.66]
[1763269155833,0.86,141.51,141.48,21.9072113]
[1763269156423,0.86,141.51,141.48,0.66]
[1763269156625,0.86,141.51,141.49,21.2472113]
[1763269157347,0.2,141.51,141.49,21.2472113]
[1763269157849,0.2,141.51,141.49,23.95195291]
[1763269158042,0.86,141.51,141.49,23.95195291]
[1763269158428,0.2,141.51,141.49,24.61195291]
[1763269158829,0.2,141.51,141.5,3.36474161]
[1763269159042,0.2,141.51,141.5,6.26948322]
[1763269160834,0.2,141.51,141.5,5.60948322]
[1763269162648,0.2,141.51,141.5,6.26948322]
[1763269167842,0.2,141.51,141.5,13.33662102]
[1763269170543,0.2,141.51,141.5,6.26948322]
[1763269170952,0.2,141.51,141.5,27.94510709]
[1763269185650,0.2,141.51,141.5,35.01224489]
[1763269191286,0.2,141.51,141.5,34.35224489]
[1763269191587,0.2,141.51,141.5,27.28510709]
[1763269193875,0.2,141.51,141.5,35.04224489]
[1763269202099,0.2,141.51,141.5,44.83107258]
[1763269203018,0.92,141.51,141.5,4.63390709]
[1763269203709,0.2,141.51,141.5,4.63390709]
[1763269203885,0.2,141.51,141.5,12.39104489]
[1763269204082,0.2,141.51,141.5,35.04224489]
[1763269204501,0.2,141.51,141.5,27.97510709]
[1763269204696,0.92,141.51,141.5,27.28510709]
[1763269204901,0.92,141.51,141.5,25.55594161]
[1763269205083,0.92,141.51,141.5,2.90474161]
[1763269205406,2.64916548,141.51,141.41,7.07127437]
[1763269205583,1.72916548,141.49,141.44,1.72916548]
[1763269205906,1.72916548,141.49,141.46,2.83336284]
[1763269206100,0.63,141.48,141.46,2.83336284]
[1763269206305,0.63,141.48,141.46,25.48456284]
[1763269206780,0.63,141.48,141.46,22.6512]
[1763269206976,0.63,141.48,141.47,2.83336284]
[1763269208200,1.92916548,141.51,141.47,4.56252832]
[1763269208401,0.63,141.48,141.47,4.56252832]
[1763269208585,0.63,141.48,141.47,1.72916548]
[1763269208786,0.63,141.48,141.47,4.56232764]
[1763269209116,0.2,141.51,141.47,5.25232764]
[1763269209303,0.2,141.51,141.48,0.69]
[1763269209483,0.83,141.51,141.49,1.72916548]
[1763269209822,0.2,141.51,141.49,1.72916548]
[1763269210021,0.2,141.51,141.5,4.56192635]
[1763269210687,0.2,141.51,141.5,5.25192635]
[1763269211314,0.2,141.51,141.5,4.56192635]
[1763269212707,2.55916548,141.51,141.5,2.83276087]
[1763269213201,0.83,141.51,141.5,2.83276087]
[1763269213796,0.83,141.51,141.48,22.6512]
[1763269213797,2.55916548,141.51,141.48,22.6512]
[1763269214000,0.63,141.5,141.49,2.83276087]
[1763269214811,0.83,141.51,141.49,1.72916548]
[1763269215499,0.2,141.51,141.49,24.38036548]
[1763269215697,0.2,141.51,141.5,1.72916548]
[1763269216111,0.83,141.51,141.49,1.72916548]
[1763269216404,0.83,141.51,141.47,23.3412]
[1763269216405,0.63,141.5,141.48,22.6512]
[1763269216595,0.63,141.5,141.48,24.38036548]
[1763269217511,0.2,141.51,141.49,1.72916548]
[1763269217808,0.83,141.51,141.49,1.72916548]
[1763269218785,0.2,141.51,141.49,1.72916548]
[1763269218986,0.2,141.51,141.5,1.72916548]
[1763269221512,0.2,141.51,141.49,22.6512]
[1763269221691,0.2,141.51,141.49,25.07036548]
[1763269222514,0.2,141.51,141.5,22.6512]
[1763269223388,0.2,141.51,141.5,23.3412]
[1763269223589,0.2,141.51,141.5,22.6512]
[1763269225612,0.2,141.51,141.49,0.69]
[1763269225916,0.2,141.51,141.49,25.07036548]
[1763269227593,0.2,141.51,141.5,2.41916548]
[1763269228630,0.2,141.51,141.5,24.38036548]
[1763269229794,0.2,141.51,141.5,2.41916548]
[1763269230895,0.2,141.51,141.5,3.39171368]
[1763269231095,0.2,141.51,141.5,10.45885148]
[1763269231405,0.2,141.51,141.5,20.24767917]
[1763269231599,0.2,141.51,141.5,23.07923688]
[1763269242346,0.2,141.51,141.5,84.87923688]
[1763269254041,0.2,141.51,141.5,81.4875232]
[1763269254244,0.2,141.51,141.5,12.60040919]
[1763269255439,0.83,141.51,141.5,5.53327139]
[1763269255746,0.83,141.51,141.5,2.70171368]
[1763269256126,0.83,141.51,141.5,25.35291368]
[1763269256323,0.83,141.51,141.5,2.70171368]
[1763269257446,0.2,141.51,141.5,2.70171368]
[1763269262035,0.2,141.51,141.5,3.42171368]
[1763269263855,0.2,141.52,141.5,20.27767917]
[1763269264054,0.2,141.52,141.51,26.07291368]
[1763269264248,0.2,141.52,141.51,3.42171368]
[1763269264552,0.2,141.52,141.51,28.90407056]
[1763269264757,0.2,141.53,141.52,9.78882769]
[1763269264969,0.2,141.53,141.52,38.56345505]
[1763269265431,0.2,141.53,141.52,48.46035027]
[1763269268267,0.2,141.53,141.52,45.75863659]
[1763269268465,0.2,141.53,141.52,48.46035027]
[1763269270552,0.2,141.55,141.52,66.12569792]
[1763269270754,0.2,141.55,141.54,15.19225505]
[1763269271259,0.2,141.55,141.54,18.74301121]
[1763269272576,0.2,141.55,141.54,25.8081518]
[1763269273382,0.2,141.55,141.54,87.6081518]
[1763269274174,0.2,141.56,141.55,9.78882769]
[1763269274346,0.2,141.56,141.55,13.16054137]
[1763269274772,0.2,141.56,141.55,23.05533813]
[1763269276660,0.2,141.57,141.55,84.85533813]
[1763269276968,0.2,141.59,141.58,9.78882769]
[1763269277175,0.83,141.65,141.6,22.6512]
[1763269277374,0.63,141.64,141.6,25.35291368]
[1763269277579,0.63,141.64,141.63,2.70171368]
[1763269277761,0.63,141.64,141.63,25.35291368]
[1763269278156,0.83,141.65,141.63,2.70171368]
[1763269278371,0.83,141.65,141.64,2.70171368]
[1763269279079,0.2,141.65,141.64,28.18186802]
[1763269281454,0.2,141.65,141.64,28.85186802]
[1763269281661,0.2,141.65,141.64,28.18186802]
[1763269282478,0.2,141.65,141.64,28.85186802]
[1763269282856,0.2,141.65,141.64,45.7008482]
[1763269283576,0.2,141.65,141.64,107.5008482]
[1763269283974,0.2,141.65,141.64,110.20256188]
[1763269284367,0.2,141.66,141.65,9.78882769]
[1763269284560,0.2,141.66,141.65,15.86225505]
[1763269285056,0.2,141.66,141.65,18.69040932]
[1763269287366,0.2,141.66,141.65,25.75006339]
[1763269289090,0.2,141.66,141.65,20.34663603]
[1763269289293,0.2,141.66,141.65,84.84834971]
[1763269291699,0.2,141.66,141.65,77.11869564]
[1763269292979,0.2,141.66,141.65,76.1423467]
[1763269293692,0.2,141.66,141.65,66.35351901]
[1763269293693,0.83,141.66,141.65,66.35351901]
[1763269293881,0.2,141.66,141.65,66.35351901]
[1763269294068,0.2,141.66,141.65,2.82815427]
[1763269294273,0.83,141.66,141.65,1.72536474]
[1763269294481,0.83,141.66,141.65,24.37656474]
[1763269294995,0.83,141.66,141.65,1.72536474]
[1763269295172,0.83,141.66,141.65,24.37656474]
[1763269297607,0.83,141.66,141.65,27.20571917]
[1763269298104,0.83,141.66,141.65,22.6512]
[1763269298387,0.2,141.66,141.65,1.72536474]
[1763269298594,0.2,141.66,141.65,24.37656474]
[1763269298793,0.2,141.66,141.65,27.20551908]
[1763269299096,0.2,141.66,141.65,34.93517315]
[1763269299297,0.2,141.66,141.65,27.87551908]
[1763269299684,0.2,141.66,141.65,44.72400084]
[1763269300694,0.2,141.66,141.65,44.05400084]
[1763269300903,0.2,141.66,141.65,44.72400084]
[1763269301698,0.2,141.66,141.65,51.6254598]
[1763269302582,0.2,141.66,141.65,113.4254598]
[1763269306107,0.83,141.74,141.73,22.6512]
[1763269306285,0.2,141.74,141.73,24.37656474]
[1763269306492,0.2,141.74,141.73,1.72536474]
[1763269306693,0.2,141.74,141.73,12.23419243]
[1763269306891,0.2,141.74,141.73,22.11661689]
[1763269307182,0.2,141.81,141.77,32.44002769]
[1763269307384,0.2,141.81,141.8,1.72536474]
[1763269307702,0.2,141.81,141.8,24.37656474]
[1763269307899,0.2,141.81,141.8,27.20336267]
[1763269308279,0.2,141.81,141.8,44.76437653]
[1763269308480,0.2,141.81,141.8,36.99219036]
[1763269309110,0.2,141.81,141.8,37.71219036]
[1763269309419,0.2,141.81,141.8,44.76437653]
[1763269310096,2.19679793,141.82,141.81,9.78882769]
[1763269310303,2.19679793,141.82,141.81,19.2858813]
[1763269310810,0.63,141.9,141.88,22.6512]
[1763269311015,0.63,141.92,141.89,1.72536474]
[1763269311311,0.63,141.92,141.91,1.72536474]
[1763269312309,0.63,141.92,141.88,24.37656474]
[1763269312620,1.72536474,141.9,141.88,21.18270079]
[1763269312808,1.72536474,141.9,141.86,24.37656474]
[1763269313003,1.72536474,141.89,141.86,21.18270079]
[1763269313186,1.72536474,141.89,141.85,1.72536474]
[1763269313518,1.72536474,141.89,141.85,45.56375355]
[1763269313706,1.72536474,141.89,141.85,43.83838881]
[1763269314010,1.72536474,141.89,141.85,24.37656474]
[1763269314196,1.72536474,141.89,141.85,45.56524998]
[1763269314785,1.72536474,141.88,141.85,22.6512]
[1763269315014,1.72536474,141.87,141.85,22.6512]
[1763269315400,9.78882769,141.92,141.85,22.6512]
[1763269315703,1.72536474,141.88,141.85,22.6512]
[1763269317027,22.6512,141.93,141.85,22.6512]
[1763269317190,1.72536474,141.88,141.85,22.6512]
[1763269317389,1.72536474,141.89,141.85,22.6512]
[1763269317689,1.72536474,141.89,141.85,43.83988524]
[1763269318724,9.78882769,141.94,141.85,43.83988524]
[1763269319015,1.72536474,141.9,141.85,24.37656474]
[1763269319202,1.72536474,141.9,141.86,9.78882769]
[1763269319531,1.72536474,141.9,141.86,11.51419243]
[1763269320330,9.78882769,141.94,141.86,11.01419243]
[1763269320493,1.72536474,141.9,141.86,11.01419243]
[1763269320699,1.72536474,141.89,141.86,9.28882769]
[1763269321610,1.72536474,141.88,141.85,22.6512]
[1763269321794,1.72536474,141.9,141.85,24.37656474]
[1763269322400,1.72536474,141.9,141.86,21.18718881]
[1763269322601,1.72536474,141.91,141.86,21.18718881]
[1763269322917,1.72536474,141.92,141.86,22.91255355]
[1763269323426,1.72536474,141.92,141.86,1.72536474]
[1763269323625,1.72536474,141.92,141.87,22.91105733]
[1763269323796,1.72536474,141.95,141.9,1.72536474]
[1763269323996,1.72536474,141.94,141.9,1.72536474]
[1763269324218,22.6512,141.97,141.9,1.72536474]
[1763269324403,1.72536474,141.95,141.91,1.22536474]
[1763269324602,22.6512,141.98,141.9,1.72536474]
[1763269324808,1.72536474,141.95,141.91,1.72536474]
[1763269325917,1.72536474,141.95,141.9,23.62507457]
[1763269326719,1.72536474,141.95,141.91,1.72536474]
[1763269326925,1.72536474,141.95,141.91,2.44536474]
[1763269327508,9.78882769,142.03,141.93,1.94536474]
[1763269327731,0.2,142.07,141.95,1.72536474]
[1763269328004,1.72536474,142.02,141.98,1.72536474]
[1763269328205,22.6512,142.05,141.98,1.72536474]
[1763269328431,1.72536474,142.04,141.99,1.72536474]
[1763269328610,1.72536474,142.04,142.0,1.72536474]
[1763269328808,0.2,142.07,142.01,1.72536474]
[1763269329112,1.72536474,142.04,141.99,24.37656474]
[1763269329320,0.2,142.07,142.0,23.61013245]
[1763269329321,1.72536474,142.05,142.0,23.61013245]
[1763269329511,1.72536474,142.05,142.01,1.72536474]
[1763269329708,1.72536474,142.04,142.0,22.89013245]
[1763269329910,1.72536474,142.04,141.99,25.09656474]
[1763269330117,1.72536474,142.04,142.0,0.72]
[1763269330435,0.2,142.07,142.0,2.44536474]
[1763269330606,1.72536474,142.05,142.01,1.72536474]
[1763269330811,0.2,142.07,142.01,1.72536474]
[1763269331228,1.92536474,142.07,142.03,1.72536474]
[1763269331409,0.2,142.07,142.04,1.72536474]
[1763269331732,0.2,142.07,142.04,22.6512]
[1763269331906,0.2,142.07,142.05,21.15730455]
[1763269332103,0.2,142.07,142.03,1.72536474]
[1763269332320,0.2,142.07,142.04,2.82137189]
[1763269333411,1.92536474,142.07,142.02,25.09656474]
[1763269333634,1.92536474,142.07,142.03,4.54693564]
[1763269333818,1.92536474,142.07,142.03,2.8215709]
[1763269334134,1.72536474,142.04,141.98,2.40536474]
[1763269334344,1.72536474,142.04,141.99,1.72536474]
[1763269334506,1.72536474,142.04,141.99,45.54282571]
[1763269334711,0.2,142.07,142.02,32.44002769]
[1763269334921,1.92536474,142.07,142.03,22.6512]
[1763269335135,0.2,142.07,142.03,46.21685393]
[1763269335323,0.2,142.07,142.03,25.05656474]
[1763269335529,1.92536474,142.07,142.03,25.05656474]
[1763269336733,0.2,142.07,142.05,1.72536474]
[1763269337113,0.2,142.07,142.06,2.40536474]
[1763269337812,2.17058904,142.11,142.06,34.84539243]
[1763269338012,2.17058904,142.11,142.1,1.72536474]
[1763269338243,2.17058904,142.11,142.1,0.68]
[1763269338715,2.17058904,142.11,142.1,2.40536474]
[1763269338911,2.17058904,142.11,142.1,4.84769354]
[1763269339519,2.17058904,142.11,142.1,14.63652123]
[1763269339928,2.17058904,142.11,142.1,23.3312]
[1763269340231,2.17058904,142.11,142.09,4.16769354]
[1763269340537,2.17058904,142.11,142.08,4.84769354]
[1763269341342,2.17058904,142.11,142.09,0.68]
[1763269341723,2.17058904,142.11,142.1,4.16769354]
[1763269341923,2.17058904,142.11,142.1,27.49889354]
[1763269342124,2.17058904,142.11,142.1,0.68]
[1763269342325,2.17058904,142.11,142.09,22.6512]
[1763269342526,2.17058904,142.11,142.09,23.3312]
[1763269343068,2.17058904,142.11,142.09,27.49889354]
[1763269343237,2.17058904,142.11,142.09,23.3312]
[1763269344363,2.17058904,142.11,142.1,0.68]
[1763269344722,2.17058904,142.11,142.1,23.3312]
[1763269344944,2.17058904,142.11,142.1,27.49889354]
[1763269345721,2.17058904,142.11,142.1,23.3312]
[1763269346124,2.17058904,142.11,142.1,27.49889354]
[1763269346644,2.17058904,142.11,142.1,4.84769354]
[1763269347944,2.17058904,142.11,142.09,4.16769354]
[1763269348149,2.17058904,142.11,142.09,27.49889354]
[1763269349564,2.17058904,142.11,142.02,40.47934279]
[1763269349565,0.2,142.1,142.02,7.04120458]
[1763269349757,6.33828258,142.11,142.06,22.6512]
[1763269349961,6.33828258,142.11,142.07,0.68]
[1763269350455,6.53828258,142.11,142.06,26.81889354]
[1763269350661,4.36769354,142.1,142.05,4.16769354]
[1763269350855,4.16769354,142.08,142.02,0.68]
[1763269351065,4.16769354,142.07,142.03,26.81889354]
[1763269351354,4.36769354,142.06,142.01,4.16769354]
[1763269351524,4.36769354,142.06,142.01,4.84769354]
[1763269351723,4.16769354,142.1,142.0,4.16769354]
[1763269351724,4.16769354,142.04,142.0,4.16769354]
[1763269351921,4.36769354,142.03,141.98,4.84769354]
[1763269352525,4.16769354,142.02,141.98,0.68]
[1763269352762,4.16769354,142.0,141.96,4.16769354]
[1763269353067,4.16769354,142.0,141.95,23.3312]
[1763269353360,4.16769354,142.02,141.98,4.16769354]
[1763269353664,4.16769354,142.01,141.95,23.3312]
[1763269353844,4.16769354,142.01,141.97,4.16769354]
[1763269354232,4.16769354,142.01,141.97,0.68]
[1763269354838,6.65022775,141.99,141.94,7.33022775]
[1763269355040,6.65022775,141.99,141.96,22.6512]
[1763269355250,6.65022775,141.98,141.96,22.6512]
[1763269355567,6.65022775,141.98,141.93,6.65022775]
[1763269355755,6.65022775,141.97,141.92,6.75022775]
[1763269355952,6.65022775,141.97,141.94,0.68]
[1763269356260,6.65022775,141.96,141.93,22.6512]
[1763269356638,6.65022775,141.96,141.94,22.6512]
[1763269356958,6.65022775,141.96,141.93,0.68]
[1763269357270,6.85022775,141.96,141.92,0.1]
[1763269357480,6.85022775,141.96,141.92,0.78]
[1763269357640,6.65022775,141.96,141.92,7.43022775]
[1763269357835,6.85022775,141.96,141.92,7.43022775]
[1763269358043,6.65022775,141.96,141.92,7.43022775]
[1763269358378,6.85022775,141.96,141.92,0.1]
[1763269358753,6.65022775,141.96,141.92,0.78]
[1763269358977,6.85022775,141.95,141.92,0.1]
[1763269360167,6.65022775,141.94,141.92,0.1]
[1763269360749,6.65022775,142.0,141.92,0.1]
[1763269360940,6.65022775,141.95,141.92,0.1]
[1763269361447,24.65119999,142.02,141.92,0.1]
[1763269361655,6.65022775,141.99,141.93,0.68]
[1763269361859,6.65022775,141.98,141.93,7.33022775]
[1763269362381,6.85022775,141.98,141.93,7.33022775]
[1763269362579,6.65022775,141.97,141.93,7.33022775]
[1763269362876,6.85022775,141.98,141.93,7.33022775]
[1763269363845,6.65022775,141.97,141.93,7.33022775]
[1763269364060,6.65022775,141.96,141.92,0.1]
[1763269364770,6.65022775,141.96,141.92,7.45022775]
[1763269366145,6.85022775,141.97,141.92,7.45022775]
[1763269367182,6.65022775,141.96,141.92,0.8]
[1763269368169,6.85022775,141.97,141.92,0.8]
[1763269371174,6.65022775,141.96,141.92,0.8]
[1763269371357,6.85022775,141.97,141.92,7.45022775]
[1763269371875,6.85022775,141.97,141.93,0.7]
[1763269373361,6.65022775,141.96,141.92,0.1]
[1763269373874,6.65022775,141.96,141.93,0.7]
[1763269374077,6.65022775,141.96,141.92,0.8]
[1763269375277,0.2,141.97,141.92,0.8]
[1763269375660,6.65022775,141.96,141.92,0.8]
[1763269375855,6.65022775,141.94,141.92,0.1]
[1763269376054,6.65022775,141.93,141.92,0.1]
[1763269376474,6.85022775,141.93,141.92,0.1]
[1763269376948,6.65022775,141.93,141.92,0.1]
[1763269377487,6.85022775,141.93,141.92,0.1]
[1763269378351,13.5004555,141.93,141.92,0.1]
[1763269380180,22.6512,141.9,141.83,0.7]
[1763269380361,6.65022775,141.85,141.83,0.7]
[1763269380559,6.65022775,141.86,141.83,0.7]
[1763269380762,6.65022775,141.88,141.84,6.65022775]
[1763269380975,6.65022775,141.88,141.83,0.7]
[1763269380976,2.68957274,141.88,141.85,0.7]
[1763269381295,2.68957274,141.89,141.85,0.7]
[1763269381502,2.68957274,141.9,141.85,3.38957274]
[1763269381785,2.68957274,141.89,141.85,0.7]
[1763269381981,2.68957274,141.89,141.86,0.7]
[1763269382182,2.68957274,141.92,141.87,2.68957274]
[1763269382386,1.99999999,141.98,141.87,2.68957274]
[1763269382387,2.68957274,141.94,141.89,2.68957274]
[1763269382861,6.65539194,141.93,141.9,0.7]
[1763269384155,0.2,141.96,141.9,0.7]
[1763269384356,6.65539194,141.94,141.9,0.7]
[1763269384760,6.65539194,141.93,141.9,0.7]
[1763269385599,6.65539194,141.94,141.9,7.35539194]
[1763269386075,6.65539194,141.94,141.91,0.7]
[1763269387483,6.65539194,141.95,141.91,7.35539194]
[1763269387654,6.65539194,141.96,141.92,0.7]
[1763269388575,6.65539194,141.96,141.92,7.35539194]
[1763269389079,6.65539194,141.96,141.93,0.7]
[1763269389483,0.2,141.98,141.93,0.7]
[1763269389484,6.65539194,141.97,141.93,0.7]
[1763269390161,0.2,141.98,141.93,0.7]
[1763269390363,6.65539194,141.96,141.93,0.7]
[1763269391266,6.65539194,141.95,141.93,0.7]
[1763269391461,6.65539194,141.94,141.9,22.6512]
[1763269391669,6.65539194,141.94,141.91,0.7]
[1763269392071,6.65539194,141.92,141.88,0.7]
[1763269392271,6.65539194,141.89,141.86,0.7]
[1763269392560,6.65539194,141.88,141.86,0.7]
[1763269394694,6.65539194,141.89,141.86,0.7]
[1763269397270,6.65539194,141.88,141.86,0.7]
[1763269401709,34.44002768,141.95,141.87,6.65539194]
[1763269401710,0.2,141.93,141.87,6.65539194]
[1763269401993,6.65539194,141.91,141.88,0.7]
[1763269402191,6.65539194,141.9,141.88,0.7]
[1763269404285,6.85539194,141.9,141.85,29.30659194]
[1763269404622,6.65539194,141.88,141.85,0.7]
[1763269404976,2.68973709,141.87,141.83,22.6512]
[1763269405187,2.68973709,141.87,141.84,0.7]
[1763269405693,0.2,141.9,141.84,0.7]
[1763269405898,0.2,141.89,141.84,0.7]
[1763269406072,2.68973709,141.86,141.84,0.7]
[1763269406274,2.68973709,141.87,141.84,0.7]
[1763269406573,106.19999999,141.93,141.84,0.7]
[1763269406574,2.68973709,141.88,141.84,0.7]
[1763269407666,2.68973709,141.87,141.84,0.7]
[1763269408890,2.68973709,141.86,141.84,0.7]
[1763269409089,2.68973709,141.87,141.84,0.7]
[1763269409269,2.68973709,141.86,141.84,0.7]
[1763269409476,2.68973709,141.87,141.84,0.7]
[1763269409983,2.68973709,141.86,141.84,0.7]
[1763269413010,2.68973709,141.87,141.84,0.7]
[1763269413795,2.68973709,141.88,141.84,0.7]
[1763269414303,2.68973709,141.87,141.84,0.7]
[1763269414907,1.72158506,141.87,141.84,0.7]
[1763269416698,1.72158506,141.88,141.84,0.7]
[1763269416901,1.72158506,141.9,141.86,24.37278506]
[1763269417414,1.72158506,141.9,141.87,0.7]
[1763269418683,1.72158506,141.91,141.87,0.7]
[1763269418905,1.72158506,141.9,141.87,0.7]
[1763269423315,1.72158506,141.89,141.86,22.6512]
[1763269423527,1.72158506,141.87,141.85,0.69]
[1763269425213,1.72158506,141.88,141.85,0.69]
[1763269426003,1.72158506,141.87,141.85,0.69]
[1763269426201,1.72158506,141.88,141.85,0.69]
[1763269429106,1.72158506,141.87,141.85,0.69]
[1763269431017,0.2,141.91,141.85,0.69]
[1763269431211,1.72158506,141.88,141.85,0.69]
[1763269432708,1.72158506,141.89,141.85,0.69]
[1763269434408,1.72158506,141.9,141.86,24.37278506]
[1763269434602,1.72158506,141.91,141.86,24.37278506]
[1763269434800,1.72158506,141.91,141.87,2.41158506]
[1763269435010,1.72158506,141.93,141.88,24.37278506]
[1763269435216,1.72158506,141.94,141.9,24.37278506]
[1763269435707,1.72158506,141.94,141.91,0.69]
[1763269436119,1.72158506,141.95,141.91,0.69]
[1763269436629,1.72158506,141.92,141.88,24.37278506]
[1763269436814,1.72158506,141.92,141.9,0.69]
[1763269437409,0.2,141.94,141.9,0.69]
[1763269437410,1.72158506,141.93,141.9,0.69]
[1763269439110,1.72158506,141.93,141.89,0.69]
[1763269439111,1.72158506,141.92,141.89,0.69]
[1763269439730,1.72158506,141.92,141.88,22.6512]
[1763269439937,1.72158506,141.9,141.88,23.3412]
[1763269440334,1.72158506,141.89,141.85,8.6079253]
[1763269440629,1.72158506,141.89,141.86,0.69]
[1763269440816,1.72158506,141.9,141.86,0.69]
[1763269441019,1.72158506,141.91,141.86,25.06278506]
[1763269441330,1.72158506,141.91,141.87,1.72158506]
[1763269441631,1.72158506,141.91,141.87,0.69]